{"text_format":"1","workbook":"xlsx","n_sheets":16,"sheets":["↓","✗","Site","Fund center","Profit center","Cost center","MIS code","Commit","Object","Asset","Statistic","Financial","Trust","Sub","Fund","Other"],"not_rendered":{"charts":0,"images":0,"macros":1,"external_links":0,"defined_names":20,"comments":0,"pivot_tables":0},"unopened":[],"bounds":{"document_bytes":16777216,"sheet_cells":100000,"rows_first":2000,"rows_last":500,"rows_between":2000,"halvings":0,"cell_chars":16384,"cell_head_chars":4096},"cells_cut":0,"cells_raw":0,"read":"whole","date_system":"1900"}

{"sheet":"↓","index":0,"n_rows":79,"n_cols":16,"rows_kept":79,"cut":false,"hidden":true,"merged":[]}
["Mã có tên","Site","SITE (CƠ SỞ KINH DOANH)","FUND CENTER (BỘ PHẬN LẬP NGÂN SÁCH)","PROFIT CENTER","COST CENTER (BỘ PHẬN)","MIS CODE (MÃ LẬP BÁO CÁO QUẢN TRỊ)","COMMIT (MÃ KHOẢN MỤC)","MÃ KHOẢN MỤC NGÂN SÁCH","ĐỐI TƯỢNG DỊCH VỤ","QUỸ","MỨC ĐỘ TIN CẬY","SỐ TG PB","MÃ PHỤ","FINANCIAL STATEMENT","_"]
[true,"HY",{"$f":"_xlfn.LET(_xlpm.a,L_SI[Site],\n_xlpm.a&IF($A$2,\";\"&_xlfn.XLOOKUP(_xlpm.a,L_SI[Site],L_SI[Name]),\"\"))","v":"_;_"},{"$f":"_xlfn.LET(_xlpm.a,L_FC[Fund center],\n_xlpm.a&IF($A$2,\";\"&_xlfn.XLOOKUP(_xlpm.a,L_FC[Fund center],L_FC[FC name]),\"\"))","v":"VN02V00101;LN/Vận hành"},{"$f":"_xlfn.LET(_xlpm.a,L_PC[Profit center],\n_xlpm.a&IF($A$2,\";\"&_xlfn.XLOOKUP(_xlpm.a,L_PC[Profit center],L_PC[PC name]),\"\"))","v":"VN02V00101;VB/Vận hành"},{"$f":"_xlfn.LET(_xlpm.a,_xlfn._xlws.FILTER(L_CC[Cost center],ISNUMBER(SEARCH($B$2,L_CC[Site]))),\n_xlpm.a&IF($A$2,\";\"&_xlfn.XLOOKUP(_xlpm.a,L_CC[Cost center],L_CC[CC name]),\"\"))","v":{"$error":"#VALUE!"}},{"$f":"_xlfn.LET(_xlpm.c,L_Mis[MIS code],_xlpm.c&IF($A$2,\";\"&_xlfn.XLOOKUP(_xlpm.c,L_Mis[MIS code],L_Mis[MIS name]),\"\"))","v":"MIS.DT011;Doanh thu từ bán vé"},{"$f":"_xlfn.LET(_xlpm.c,L_CI[CI code],_xlpm.c&IF($A$2,\";\"&_xlfn.XLOOKUP(_xlpm.c,L_CI[CI code],L_CI[CI name]),\"\"))","v":"MIS.DT011;Doanh thu từ bán vé"},{"$f":"_xlfn.LET(\n_xlpm.a,_xlfn.LET(_xlpm.c,L_CI[CI code],_xlpm.c&IF($A$2,\";\"&_xlfn.XLOOKUP(_xlpm.c,L_CI[CI code],L_CI[CI name]),\"\")),\n_xlpm.b,_xlfn.LET(_xlpm.s,L_ST[Statistics],_xlpm.s&IF($A$2,\";\"&_xlfn.XLOOKUP(_xlpm.s,L_ST[Statistics],L_ST[Statistics name]),\"\")),\n_xlpm.c,ROWS(_xlpm.a),_xlpm.d,ROWS(_xlpm.b),_xlpm.e,_xlpm.c+_xlpm.d,IF(_xlfn.SEQUENCE(_xlpm.e)<=_xlpm.c,INDEX(_xlpm.a,_xlfn.SEQUENCE(_xlpm.c),{1}),INDEX(_xlpm.b,_xlfn.SEQUENCE(_xlpm.e)-_xlpm.c,{1})))","v":"MIS.DT011;Doanh thu từ bán vé"},{"$f":"_xlfn.LET(_xlpm.a,L_OJ[Object],\n_xlpm.a&IF($A$2,\";\"&_xlfn.XLOOKUP(_xlpm.a,L_OJ[Object],L_OJ[Object name]),\"\"))","v":"08A_;Long Biên - Đông Mỹ"},{"$f":"_xlfn.LET(_xlpm.a,L_FD[Fund],\n_xlpm.a&IF($A$2,\";\"&_xlfn.XLOOKUP(_xlpm.a,L_FD[Fund],L_FD[Fund name]),\"\"))","v":";"},{"$f":"L_TR[Trust]","v":"Xanh"},{"$f":"L_KY[KỲ PB]","v":0},{"$f":"L_SUB[Sub code]","v":0},{"$f":"_xlfn.LET(_xlpm.a,L_FS[FS code],\n_xlpm.a&IF($A$2,\";\"&_xlfn.XLOOKUP(_xlpm.a,L_FS[FS code],L_FS[FS name]),\"\"))","v":"001_;Doanh thu bán hàng"}]
[null,null,"HO;Head Office","VN02V08001;LN/Xưởng","VN02V00202;VB/KSCL & ANAT",null,"MIS.DT012;Doanh thu trợ cấp, trợ giá","MIS.DT012;Doanh thu trợ cấp, trợ giá","MIS.DT012;Doanh thu trợ cấp, trợ giá","08B_;Long Biên - Vạn Phúc (Thanh Trì)",null,"Vàng",1,null,"002_;Chiết khấu, giảm giá"]
[null,null,"LN;Liên Ninh","VN02V09001;LN/Ban giám đốc","VN02V00301;VB/VH/Tuyến 08A",null,"MIS.DT013;Doanh thu trợ giá khác ","MIS.DT013;Doanh thu trợ giá khác ","MIS.DT013;Doanh thu trợ giá khác ","09A_;Trần Khánh Dư - Cầu Giấy - ĐH Mỏ",null,"Đỏ",2,null,"011_;Giá vốn hàng bán"]
[null,null,null,"VN02V09101;LN/P. Hành chính - Nhân sự","VN02V00302;VB/VH/Tuyến 08A/Tài xế",null,"MIS.DT031;Doanh thu quảng cáo","MIS.DT031;Doanh thu quảng cáo","MIS.DT031;Doanh thu quảng cáo","09B_;Trần Khánh Dư - Công viên Thống Nhất - Bến xe Mỹ Đình",null,"Tím",3,null,"021_;Doanh thu tài chính"]
[null,null,null,"VN02V09201;LN/P. Kế toán","VN02V00303;VB/VH/Tuyến 08A/HDV",null,"MIS.DT032;Doanh thu dịch vụ khác","MIS.DT032;Doanh thu dịch vụ khác","MIS.DT032;Doanh thu dịch vụ khác","125_;BX Thường Tín- Tế Tiêu",null,null,6,null,"022_;Chi phí tài chính"]
[null,null,null,null,"VN02V00401;VB/VH/Tuyến 08B",null,"MIS.DT041;Doanh thu sửa chữa bảo dưỡng xe","MIS.DT041;Doanh thu sửa chữa bảo dưỡng xe","MIS.DT041;Doanh thu sửa chữa bảo dưỡng xe","19_;Trần Khánh Dư - HV Chính sách và phát triển",null,null,9,null,"025_;Chi phí bán hàng"]
[null,null,null,null,"VN02V00402;VB/VH/Tuyến 08B/Tài xế",null,"MIS.DT042;Doanh thu sửa chữa bảo dưỡng-Phụ tùng","MIS.DT042;Doanh thu sửa chữa bảo dưỡng-Phụ tùng","MIS.DT042;Doanh thu sửa chữa bảo dưỡng-Phụ tùng","21A_;Bến xe Giáp Bát - Bến xe Yên Nghĩa",null,null,12,null,"026_;Chi phí quản lý"]
[null,null,null,null,"VN02V00403;VB/VH/Tuyến 08B/HDV",null,"MIS.DT043;Doanh thu bán pin XMĐ","MIS.DT043;Doanh thu bán pin XMĐ","MIS.DT043;Doanh thu bán pin XMĐ","21B_;Duyên Thái - Bến xe Mỹ Đình",null,null,15,null,"031_;Thu thập khác"]
[null,null,null,null,"VN02V00501;VB/VH/Tuyến 09A",null,"MIS.DT051;Doanh thu dịch vụ sạc pin V-green","MIS.DT051;Doanh thu dịch vụ sạc pin V-green","MIS.DT051;Doanh thu dịch vụ sạc pin V-green","37_;Bến xe Giáp Bát - Chương Mỹ",null,null,18,null,"032_;Chi phí khác"]
[null,null,null,null,"VN02V00502;VB/VH/Tuyến 09A/Tài xế",null,"MIS.CPNS010;Chi phí lương","MIS.CPNS010;Chi phí lương","MIS.CPNS010;Chi phí lương","T4_;Tuyến T4",null,null,21,null,"110_;Tiền và các khoản tương đương tiền"]
[null,null,null,null,"VN02V00503;VB/VH/Tuyến 09A/HDV",null,"MIS.CPNS011;Chi phí lương ngoài giờ","MIS.CPNS011;Chi phí lương ngoài giờ","MIS.CPNS011;Chi phí lương ngoài giờ","T5_;Tuyến T5",null,null,24,null,"120_;Các khoản đầu tư tài chính ngắn hạn"]
[null,null,null,null,"VN02V00601;VB/VH/Tuyến 09B",null,"MIS.CPNS012;Chi phí lương tháng 13","MIS.CPNS012;Chi phí lương tháng 13","MIS.CPNS012;Chi phí lương tháng 13","T6_;Tuyến T6",null,null,27,null,"130_;Các khoản phải thu ngắn hạn"]
[null,null,null,null,"VN02V00602;VB/VH/Tuyến 09B/Tài xế",null,"MIS.CPNS02;Chi phí thưởng","MIS.CPNS02;Chi phí thưởng","MIS.CPNS02;Chi phí thưởng","T7_;Tuyến T7",null,null,30,null,"140_;Hàng tồn kho"]
[null,null,null,null,"VN02V00603;VB/VH/Tuyến 09B/HDV",null,"MIS.CPNS03;Chi phí BHXH, BHYT, BHTN","MIS.CPNS03;Chi phí BHXH, BHYT, BHTN","MIS.CPNS03;Chi phí BHXH, BHYT, BHTN","T8_;Tuyến T8",null,null,33,null,"150_;Chi phí trả trước ngắn hạn"]
[null,null,null,null,"VN02V00701;VB/VH/Tuyến 19",null,"MIS.CPNS041;Chi phí phúc lợi 4,5tr","MIS.CPNS041;Chi phí phúc lợi 4,5tr","MIS.CPNS041;Chi phí phúc lợi 4,5tr","VN02V09101_;Hành chính - Nhân sự",null,null,36,null,"152_;Thuế GTGT được khấu trừ HĐKD"]
[null,null,null,null,"VN02V00702;VB/VH/Tuyến 19/Tài xế",null,"MIS.CPNS042;Phúc lợi HĐ tập thể, teambuilding","MIS.CPNS042;Phúc lợi HĐ tập thể, teambuilding","MIS.CPNS042;Phúc lợi HĐ tập thể, teambuilding","VN02V09201_;Kế toán",null,null,39,null,"153_;Thuế GTGT được khấu trừ HĐĐT"]
[null,null,null,null,"VN02V00703;VB/VH/Tuyến 19/HDV",null,"MIS.CPNS043;Phúc lợi khám sức khỏe","MIS.CPNS043;Phúc lợi khám sức khỏe","MIS.CPNS043;Phúc lợi khám sức khỏe","VN02V00101_;Vận hành",null,null,42,null,"158_;Tài sản ngắn hạn khác"]
[null,null,null,null,"VN02V00801;VB/VH/Tuyến 21A",null,"MIS.CPNS044;Phúc lợi BH Sức khỏe","MIS.CPNS044;Phúc lợi BH Sức khỏe","MIS.CPNS044;Phúc lợi BH Sức khỏe","VN02V08001_;Xưởng",null,null,null,null,"210_;Các khoản phải thu dài hạn"]
[null,null,null,null,"VN02V00802;VB/VH/Tuyến 21A/Tài xế",null,"MIS.CPNS045;Phúc lợi khác","MIS.CPNS045;Phúc lợi khác","MIS.CPNS045;Phúc lợi khác","VN02V09001_;Ban giám đốc",null,null,null,null,"220_;Tài sản cố định"]
[null,null,null,null,"VN02V00803;VB/VH/Tuyến 21A/HDV",null,"MIS.CPNS046;Chi phí thưởng tay nghề","MIS.CPNS046;Chi phí thưởng tay nghề","MIS.CPNS046;Chi phí thưởng tay nghề",null,null,null,null,null,"223_;Hao mòn TSCĐ"]
[null,null,null,null,"VN02V00901;VB/VH/Tuyến 21B",null,"MIS.CPNS047;Chi phí phụ cấp, trợ cấp thôi việc","MIS.CPNS047;Chi phí phụ cấp, trợ cấp thôi việc","MIS.CPNS047;Chi phí phụ cấp, trợ cấp thôi việc",null,null,null,null,null,"231_;Bất động sản đầu tư"]
[null,null,null,null,"VN02V00902;VB/VH/Tuyến 21B/Tài xế",null,"MIS.CPNS048;Chi phí phụ cấp hỗ trợ lượt, chuyến","MIS.CPNS048;Chi phí phụ cấp hỗ trợ lượt, chuyến","MIS.CPNS048;Chi phí phụ cấp hỗ trợ lượt, chuyến",null,null,null,null,null,"232_;Hao mòn BĐS đầu tư"]
[null,null,null,null,"VN02V00903;VB/VH/Tuyến 21B/HDV",null,"MIS.CPNS049;Chi phí phụ cấp khác","MIS.CPNS049;Chi phí phụ cấp khác","MIS.CPNS049;Chi phí phụ cấp khác",null,null,null,null,null,"240_;Tài sản dở dang dài hạn"]
[null,null,null,null,"VN02V01001;VB/VH/Tuyến 37",null,"MIS.CPVT01;Chi phí điện Ebus","MIS.CPVT01;Chi phí điện Ebus","MIS.CPVT01;Chi phí điện Ebus",null,null,null,null,null,"250_;Các khoản đầu tư tài chính dài hạn"]
[null,null,null,null,"VN02V01002;VB/VH/Tuyến 37/Tài xế",null,"MIS.CPVT02;Chi phí công nghệ thông tin","MIS.CPVT02;Chi phí công nghệ thông tin","MIS.CPVT02;Chi phí công nghệ thông tin",null,null,null,null,null,"260_;Tổng tài sản dài hạn khác"]
[null,null,null,null,"VN02V01003;VB/VH/Tuyến 37/HDV",null,"MIS.CPVT03;Chi phí điện thoại, internet","MIS.CPVT03;Chi phí điện thoại, internet","MIS.CPVT03;Chi phí điện thoại, internet",null,null,null,null,null,"269_;Lợi thế thương mại"]
[null,null,null,null,"VN02V01101;VB/VH/Tuyến 125",null,"MIS.CPVT04;CP BDSC","MIS.CPVT04;CP BDSC","MIS.CPVT04;CP BDSC",null,null,null,null,null,"311_;Phải trả người bán ngắn hạn"]
[null,null,null,null,"VN02V01102;VB/VH/Tuyến 125/Tài xế",null,"MIS.CPVT05;CP bảo trì, PCCC, vật tư tiêu hao","MIS.CPVT05;CP bảo trì, PCCC, vật tư tiêu hao","MIS.CPVT05;CP bảo trì, PCCC, vật tư tiêu hao",null,null,null,null,null,"312_;Người mua trả tiền trước"]
[null,null,null,null,"VN02V01103;VB/VH/Tuyến 125/HDV",null,"MIS.CPVT06;Phí cầu đường, bến bãi","MIS.CPVT06;Phí cầu đường, bến bãi","MIS.CPVT06;Phí cầu đường, bến bãi",null,null,null,null,null,"313_;Thuế và các khoản phải nộp NN"]
[null,null,null,null,"VN02V08001;LN/Xưởng",null,"MIS.CPVT07;Chi phí duy trì xe","MIS.CPVT07;Chi phí duy trì xe","MIS.CPVT07;Chi phí duy trì xe",null,null,null,null,null,"314_;Phải trả nhân viên"]
[null,null,null,null,"VN02V09001;LN/Ban giám đốc",null,"MIS.CPVT08;Phí bảo trì đường bộ","MIS.CPVT08;Phí bảo trì đường bộ","MIS.CPVT08;Phí bảo trì đường bộ",null,null,null,null,null,"315_;Chi phí phải trả ngắn hạn"]
[null,null,null,null,"VN02V09101;LN/P. Hành chính - Nhân sự",null,"MIS.CPVT09;Đăng kiểm (khám xe)","MIS.CPVT09;Đăng kiểm (khám xe)","MIS.CPVT09;Đăng kiểm (khám xe)",null,null,null,null,null,"318_;Doanh thu chưa thực hiện ngắn hạn"]
[null,null,null,null,"VN02V09201;LN/P. Kế toán",null,"MIS.CPVT10;CP Bảo hiểm trách nhiệm dân sự","MIS.CPVT10;CP Bảo hiểm trách nhiệm dân sự","MIS.CPVT10;CP Bảo hiểm trách nhiệm dân sự",null,null,null,null,null,"319_;Các khoản phải trả ngắn hạn khác"]
[null,null,null,null,null,null,"MIS.CPVT11;Chi phí thuế đất nông nghiệp","MIS.CPVT11;Chi phí thuế đất nông nghiệp","MIS.CPVT11;Chi phí thuế đất nông nghiệp",null,null,null,null,null,"320_;Vay và nợ thuê tài chính ngắn hạn"]
[null,null,null,null,null,null,"MIS.CPVT12;CP Thuê địa điểm","MIS.CPVT12;CP Thuê địa điểm","MIS.CPVT12;CP Thuê địa điểm",null,null,null,null,null,"321_;Vay và nợ dài hạn đến hạn trả"]
[null,null,null,null,null,null,"MIS.CPVT13;BH hành khách","MIS.CPVT13;BH hành khách","MIS.CPVT13;BH hành khách",null,null,null,null,null,"331_;Phải trả người bán dài hạn"]
[null,null,null,null,null,null,"MIS.CPVT14;CP Bảo hiểm tài sản","MIS.CPVT14;CP Bảo hiểm tài sản","MIS.CPVT14;CP Bảo hiểm tài sản",null,null,null,null,null,"336_;Doanh thu chưa thực hiện dài hạn"]
[null,null,null,null,null,null,"MIS.CPVT15;CP Bảo hiểm vật chất","MIS.CPVT15;CP Bảo hiểm vật chất","MIS.CPVT15;CP Bảo hiểm vật chất",null,null,null,null,null,"338_;Vay và nợ thuê tài chính dài hạn"]
[null,null,null,null,null,null,"MIS.CPVT16;CP In vé, thẻ","MIS.CPVT16;CP In vé, thẻ","MIS.CPVT16;CP In vé, thẻ",null,null,null,null,null,"342_;Dự phòng phải trả dài hạn"]
[null,null,null,null,null,null,"MIS.CPVT17;Chi phí đền bù tổn thất khách hàng","MIS.CPVT17;Chi phí đền bù tổn thất khách hàng","MIS.CPVT17;Chi phí đền bù tổn thất khách hàng",null,null,null,null,null,"350_;Nợ dài hạn khác"]
[null,null,null,null,null,null,"MIS.CPVT18;Chi phí hỗ trợ, chăm sóc khách hàng","MIS.CPVT18;Chi phí hỗ trợ, chăm sóc khách hàng","MIS.CPVT18;Chi phí hỗ trợ, chăm sóc khách hàng",null,null,null,null,null,"411_;Vốn đầu tư của chủ sở hữu"]
[null,null,null,null,null,null,"MIS.CPVT19;Chi phí Đồng phục","MIS.CPVT19;Chi phí Đồng phục","MIS.CPVT19;Chi phí Đồng phục",null,null,null,null,null,"412_;Thặng dư vốn cổ phần"]
[null,null,null,null,null,null,"MIS.CPVT20;Chi phí Nhân sự thuê ngoài, thời vụ","MIS.CPVT20;Chi phí Nhân sự thuê ngoài, thời vụ","MIS.CPVT20;Chi phí Nhân sự thuê ngoài, thời vụ",null,null,null,null,null,"416_;Chênh lệch đánh giá lại tài sản"]
[null,null,null,null,null,null,"MIS.CPVT21;Chi phí sửa chữa trạm sạc","MIS.CPVT21;Chi phí sửa chữa trạm sạc","MIS.CPVT21;Chi phí sửa chữa trạm sạc",null,null,null,null,null,"421_;Lợi nhuận sau thuế chưa phân phối"]
[null,null,null,null,null,null,"MIS.CPVT22;Chi phí thuê xe","MIS.CPVT22;Chi phí thuê xe","MIS.CPVT22;Chi phí thuê xe",null,null,null,null,null,"430_;Nguồn vốn khác"]
[null,null,null,null,null,null,"MIS.CPVT23;Chi phí vận tải khác","MIS.CPVT23;Chi phí vận tải khác","MIS.CPVT23;Chi phí vận tải khác",null,null,null,null,null,"621_;Chi phí NPL trực tiếp"]
[null,null,null,null,null,null,"MIS.CPXDV01;Giá vốn phụ tùng","MIS.CPXDV01;Giá vốn phụ tùng","MIS.CPXDV01;Giá vốn phụ tùng",null,null,null,null,null,"622_;Chi phí NC trực tiếp"]
[null,null,null,null,null,null,"MIS.CPXDV02;CP vật tư tiêu hao","MIS.CPXDV02;CP vật tư tiêu hao","MIS.CPXDV02;CP vật tư tiêu hao",null,null,null,null,null,"627_;Chi phí sản xuất chung"]
[null,null,null,null,null,null,"MIS.CPXDV03;CP khác","MIS.CPXDV03;CP khác","MIS.CPXDV03;CP khác"]
[null,null,null,null,null,null,"MIS.CPSM01;Chi phí S&M","MIS.CPSM01;Chi phí S&M","MIS.CPSM01;Chi phí S&M"]
[null,null,null,null,null,null,"MIS.CPAG01;Chi phí công tác (CTP, vé máy bay, khách sạn, taxi công tác)","MIS.CPAG01;Chi phí công tác (CTP, vé máy bay, khách sạn, taxi công tác)","MIS.CPAG01;Chi phí công tác (CTP, vé máy bay, khách sạn, taxi công tác)"]
[null,null,null,null,null,null,"MIS.CPAG02;Chi phí công cụ dụng cụ vật tư tiêu hao khối hỗ trợ","MIS.CPAG02;Chi phí công cụ dụng cụ vật tư tiêu hao khối hỗ trợ","MIS.CPAG02;Chi phí công cụ dụng cụ vật tư tiêu hao khối hỗ trợ"]
[null,null,null,null,null,null,"MIS.CPAG03;Chi phí vận chuyển, taxi","MIS.CPAG03;Chi phí vận chuyển, taxi","MIS.CPAG03;Chi phí vận chuyển, taxi"]
[null,null,null,null,null,null,"MIS.CPAG04;CP Tiếp khách","MIS.CPAG04;CP Tiếp khách","MIS.CPAG04;CP Tiếp khách"]
[null,null,null,null,null,null,"MIS.CPAG05;Chi phí đào tạo","MIS.CPAG05;Chi phí đào tạo","MIS.CPAG05;Chi phí đào tạo"]
[null,null,null,null,null,null,"MIS.CPAG06;Chi phí tuyển dụng","MIS.CPAG06;Chi phí tuyển dụng","MIS.CPAG06;Chi phí tuyển dụng"]
[null,null,null,null,null,null,"MIS.CPAG07;Chi phí nhu yếu phẩm","MIS.CPAG07;Chi phí nhu yếu phẩm","MIS.CPAG07;Chi phí nhu yếu phẩm"]
[null,null,null,null,null,null,"MIS.CPAG08;Chi phí văn phòng (văn phòng phẩm, in ấn, chuyển phát)","MIS.CPAG08;Chi phí văn phòng (văn phòng phẩm, in ấn, chuyển phát)","MIS.CPAG08;Chi phí văn phòng (văn phòng phẩm, in ấn, chuyển phát)"]
[null,null,null,null,null,null,"MIS.CPAG09;Phí ngân hàng","MIS.CPAG09;Phí ngân hàng","MIS.CPAG09;Phí ngân hàng"]
[null,null,null,null,null,null,"MIS.CPAG10;Thuế môn bài, thuế, Phí khác","MIS.CPAG10;Thuế môn bài, thuế, Phí khác","MIS.CPAG10;Thuế môn bài, thuế, Phí khác"]
[null,null,null,null,null,null,"MIS.CPAG11;Phí chuyên gia, tư vấn","MIS.CPAG11;Phí chuyên gia, tư vấn","MIS.CPAG11;Phí chuyên gia, tư vấn"]
[null,null,null,null,null,null,"MIS.CPAG12;Chi phí làm giấy phép, giấy tờ","MIS.CPAG12;Chi phí làm giấy phép, giấy tờ","MIS.CPAG12;Chi phí làm giấy phép, giấy tờ"]
[null,null,null,null,null,null,"MIS.CPAG13;Chi phí dịch vụ mua ngoài","MIS.CPAG13;Chi phí dịch vụ mua ngoài","MIS.CPAG13;Chi phí dịch vụ mua ngoài"]
[null,null,null,null,null,null,"MIS.CPAG14;Chi phí sửa chữa văn phòng","MIS.CPAG14;Chi phí sửa chữa văn phòng","MIS.CPAG14;Chi phí sửa chữa văn phòng"]
[null,null,null,null,null,null,"MIS.CPAG15;Chi phí A&G khác","MIS.CPAG15;Chi phí A&G khác","MIS.CPAG15;Chi phí A&G khác"]
[null,null,null,null,null,null,"MIS.KHHĐ;Capex hoạt động (CCDC + VP)","MIS.KHHĐ;Capex hoạt động (CCDC + VP)","MIS.KHHĐ;Capex hoạt động (CCDC + VP)"]
[null,null,null,null,null,null,"MIS.KHVH;Capex vận hành (Trạm sạc + nhà xưởng + thiết bị sửa chữa)","MIS.KHVH;Capex vận hành (Trạm sạc + nhà xưởng + thiết bị sửa chữa)","MIS.KHVH;Capex vận hành (Trạm sạc + nhà xưởng + thiết bị sửa chữa)"]
[null,null,null,null,null,null,"MIS.KHPTVT;Khấu hao TSCĐ Phương tiện vận tải","MIS.KHPTVT;Khấu hao TSCĐ Phương tiện vận tải","MIS.KHPTVT;Khấu hao TSCĐ Phương tiện vận tải"]
[null,null,null,null,null,null,"MIS.DTK;Thu khác","MIS.DTK;Thu khác","MIS.DTK;Thu khác"]
[null,null,null,null,null,null,"MIS.CPK;Chi phí khác","MIS.CPK;Chi phí khác","MIS.CPK;Chi phí khác"]
[null,null,null,null,null,null,"MIS.DTTC;Thu nhập tài chính","MIS.DTTC;Thu nhập tài chính","MIS.DTTC;Thu nhập tài chính"]
[null,null,null,null,null,null,"MIS.CPTC;Chi phí tài chính","MIS.CPTC;Chi phí tài chính","MIS.CPTC;Chi phí tài chính"]
[null,null,null,null,null,null,null,null,"CT10;Số xe kế hoạch"]
[null,null,null,null,null,null,null,null,"CT13;Số xe kế hoạch quy đổi"]
[null,null,null,null,null,null,null,null,"CT21;Số xe vận doanh"]
[null,null,null,null,null,null,null,null,"CT19;Số xe vận doanh quy đổi"]
[null,null,null,null,null,null,null,null,"CT23;Số Km vận hành"]
[null,null,null,null,null,null,null,null,"CT15;Số km nghiệm thu"]

{"sheet":"✗","index":1,"n_rows":15,"n_cols":2,"rows_kept":15,"cut":false,"hidden":true,"merged":[]}
[null,"Mã trùng"]
["Site",{"$f":"IFERROR(TRANSPOSE(_xlfn.LET(_xlpm.i,L_SI[Site],_xlfn._xlws.FILTER(_xlfn.UNIQUE(_xlpm.i),COUNTIFS(_xlpm.i,_xlfn.UNIQUE(_xlpm.i))>1))),0)","v":0}]
["Fund center",{"$f":"IFERROR(TRANSPOSE(_xlfn.LET(_xlpm.i,L_FC[Fund center],_xlfn._xlws.FILTER(_xlfn.UNIQUE(_xlpm.i),COUNTIFS(_xlpm.i,_xlfn.UNIQUE(_xlpm.i))>1))),0)","v":0}]
["Profit center",{"$f":"IFERROR(TRANSPOSE(_xlfn.LET(_xlpm.i,L_PC[Profit center],_xlfn._xlws.FILTER(_xlfn.UNIQUE(_xlpm.i),COUNTIFS(_xlpm.i,_xlfn.UNIQUE(_xlpm.i))>1))),0)","v":0}]
["{Cost center}",{"$f":"IFERROR(TRANSPOSE(_xlfn.LET(_xlpm.i,L_CC[Cost center],_xlfn._xlws.FILTER(_xlfn.UNIQUE(_xlpm.i),COUNTIFS(_xlpm.i,_xlfn.UNIQUE(_xlpm.i))>1))),0)","v":0}]
["MIS code",{"$f":"IFERROR(TRANSPOSE(_xlfn.LET(_xlpm.i,L_Mis[MIS code],_xlfn._xlws.FILTER(_xlfn.UNIQUE(_xlpm.i),COUNTIFS(_xlpm.i,_xlfn.UNIQUE(_xlpm.i))>1))),0)","v":0}]
["{Commit}",{"$f":"IFERROR(TRANSPOSE(_xlfn.LET(_xlpm.i,L_CI[CI code],_xlfn._xlws.FILTER(_xlfn.UNIQUE(_xlpm.i),COUNTIFS(_xlpm.i,_xlfn.UNIQUE(_xlpm.i))>1))),0)","v":0}]
["{Object}",{"$f":"IFERROR(TRANSPOSE(_xlfn.LET(_xlpm.i,L_OJ[Object],_xlfn._xlws.FILTER(_xlfn.UNIQUE(_xlpm.i),COUNTIFS(_xlpm.i,_xlfn.UNIQUE(_xlpm.i))>1))),0)","v":0}]
["Asset",{"$f":"IFERROR(TRANSPOSE(_xlfn.LET(_xlpm.i,L_AS[Asset type],_xlfn._xlws.FILTER(_xlfn.UNIQUE(_xlpm.i),COUNTIFS(_xlpm.i,_xlfn.UNIQUE(_xlpm.i))>1))),0)","v":0}]
["Statistic",{"$f":"IFERROR(TRANSPOSE(_xlfn.LET(_xlpm.i,L_ST[Statistics],_xlfn._xlws.FILTER(_xlfn.UNIQUE(_xlpm.i),COUNTIFS(_xlpm.i,_xlfn.UNIQUE(_xlpm.i))>1))),0)","v":0}]
["Financial",{"$f":"IFERROR(TRANSPOSE(_xlfn.LET(_xlpm.i,L_FS[FS code],_xlfn._xlws.FILTER(_xlfn.UNIQUE(_xlpm.i),COUNTIFS(_xlpm.i,_xlfn.UNIQUE(_xlpm.i))>1))),0)","v":0}]
["Trust",{"$f":"IFERROR(TRANSPOSE(_xlfn.LET(_xlpm.i,L_TR[Trust],_xlfn._xlws.FILTER(_xlfn.UNIQUE(_xlpm.i),COUNTIFS(_xlpm.i,_xlfn.UNIQUE(_xlpm.i))>1))),0)","v":0}]
["Sub",{"$f":"IFERROR(TRANSPOSE(_xlfn.LET(_xlpm.i,L_SUB[Sub code],_xlfn._xlws.FILTER(_xlfn.UNIQUE(_xlpm.i),COUNTIFS(_xlpm.i,_xlfn.UNIQUE(_xlpm.i))>1))),0)","v":0}]
["Fund",{"$f":"IFERROR(TRANSPOSE(_xlfn.LET(_xlpm.i,L_FC[Fund center],_xlfn._xlws.FILTER(_xlfn.UNIQUE(_xlpm.i),COUNTIFS(_xlpm.i,_xlfn.UNIQUE(_xlpm.i))>1))),0)","v":0}]
["Other"]

{"sheet":"Site","index":2,"n_rows":32,"n_cols":9,"rows_kept":32,"cut":false,"hidden":false,"merged":[]}
[]
["𝓛𝓲𝓮𝓷𝓝𝓲𝓷𝓱",null,"SITE (CƠ SỞ KINH DOANH)",null,"Là địa điểm cụ thể nơi doanh nghiệp hoạt động, có thể là nhà máy, cửa hàng, văn phòng hoặc chi nhánh, depot"]
["𝓑𝓾𝓼"]
[]
[null,"_","Site","Name","Properties","#","_","Trùng","Lồng"]
["Site",null,"_","_",null,null,null,{"$f":"_Duplicate(L_SI[Site])","v":"null"},{"$f":"_Integrate(L_SI[Site])","v":"null"}]
[null,null,"HO","Head Office",null,1]
["Fund center",null,"LN","Liên Ninh",null,2]
[]
["Profit center"]
[]
["Cost center"]
[]
["MIS code"]
[]
["Commit"]
[]
["Object"]
[]
["Asset"]
[]
["Statistic"]
[]
["Financial"]
[]
["Trust"]
[]
["Sub"]
[]
["Fund"]
[]
["Other"]

{"sheet":"Fund center","index":3,"n_rows":32,"n_cols":10,"rows_kept":32,"cut":false,"hidden":false,"merged":[]}
[{"$f":"Range2(L_FC[Site])","v":"E6:E10"}]
[{"$f":"Site!A2","v":"𝓛𝓲𝓮𝓷𝓝𝓲𝓷𝓱"},null,"FUND CENTER (KHỐI LẬP NGÂN SÁCH)",null,"Trong các công ty có quy mô lớn, việc chia thành các khối ngân sách sẽ giúp việc điều phối lập và quản lý ngân sách hiệu quả hơn. Fund center mang ý nghĩa phân công, tổ chức lập và quản lý ngân sách."]
[{"$f":"Site!A3","v":"𝓑𝓾𝓼"},null,null,null,"Thường hay thấy nhất là ở khối HO chia các nhóm bộ phận chuyên môn thành các khối, trong khi ở các cơ sở vận hành thì cơ sở đó cũng đồng thời là một khối. "]
[]
[null,"_","Fund center","FC name","Site","Properties","#","_","Trùng","Lồng"]
["Site",null,"VN02V00101","LN/Vận hành","LN",null,1,null,{"$f":"_Duplicate(L_FC[Fund center])","v":"null"},{"$f":"_Integrate(L_FC[Fund center])","v":"null"}]
[null,null,"VN02V08001","LN/Xưởng","LN",null,2]
["Fund center",null,"VN02V09001","LN/Ban giám đốc","LN",null,3]
[null,null,"VN02V09101","LN/P. Hành chính - Nhân sự","LN",null,4]
["Profit center",null,"VN02V09201","LN/P. Kế toán","LN",null,5]
[]
["Cost center"]
[]
["MIS code"]
[]
["Commit"]
[]
["Object"]
[]
["Asset"]
[]
["Statistic"]
[]
["Financial"]
[]
["Trust"]
[]
["Sub"]
[]
["Fund"]
[]
["Other"]

{"sheet":"Profit center","index":4,"n_rows":38,"n_cols":10,"rows_kept":38,"cut":false,"hidden":false,"merged":[]}
[{"$f":"Range2(L_PC[Site])","v":"E6:E38"}]
[{"$f":"Site!A2","v":"𝓛𝓲𝓮𝓷𝓝𝓲𝓷𝓱"},null,"PROFIT CENTER (TRUNG TÂM LỢI NHUẬN)",null,null,"Đơn vị trong doanh nghiệp có trách nhiệm tạo ra doanh thu và lợi nhuận, có ranh giới về doanh thu- chi phí có thể phân tách được, để quản trị và phân tích kinh doanh. Profit center được hình thành bằng cách nhóm các cost-center"]
[{"$f":"Site!A3","v":"𝓑𝓾𝓼"},null,null,null,null,"Profit center là mã để tổng hợp ngân sách theo chiều bộ phận, không phải mã để lập ngân sách."]
[]
[null,"_","Profit center","PC name","Site","Properties","#","_","Trùng","Lồng"]
["Site",null,"VN02V00101","VB/Vận hành",{"$f":"_xlfn.XLOOKUP(L_PC[[#This Row],[Profit center]],L_CC[Cost center],L_CC[Site])","v":"LN"},null,1,null,{"$f":"_Duplicate(L_PC[Profit center])","v":"null"},{"$f":"_Integrate(L_PC[Profit center])","v":"null"}]
[null,null,"VN02V00202","VB/KSCL & ANAT",{"$f":"_xlfn.XLOOKUP(L_PC[[#This Row],[Profit center]],L_CC[Cost center],L_CC[Site])","v":"LN"},null,2]
["Fund center",null,"VN02V00301","VB/VH/Tuyến 08A",{"$f":"_xlfn.XLOOKUP(L_PC[[#This Row],[Profit center]],L_CC[Cost center],L_CC[Site])","v":"LN"},null,3]
[null,null,"VN02V00302","VB/VH/Tuyến 08A/Tài xế",{"$f":"_xlfn.XLOOKUP(L_PC[[#This Row],[Profit center]],L_CC[Cost center],L_CC[Site])","v":"LN"},null,4]
["Profit center",null,"VN02V00303","VB/VH/Tuyến 08A/HDV",{"$f":"_xlfn.XLOOKUP(L_PC[[#This Row],[Profit center]],L_CC[Cost center],L_CC[Site])","v":"LN"},null,5]
[null,null,"VN02V00401","VB/VH/Tuyến 08B",{"$f":"_xlfn.XLOOKUP(L_PC[[#This Row],[Profit center]],L_CC[Cost center],L_CC[Site])","v":"LN"},null,6]
["Cost center",null,"VN02V00402","VB/VH/Tuyến 08B/Tài xế",{"$f":"_xlfn.XLOOKUP(L_PC[[#This Row],[Profit center]],L_CC[Cost center],L_CC[Site])","v":"LN"},null,7]
[null,null,"VN02V00403","VB/VH/Tuyến 08B/HDV",{"$f":"_xlfn.XLOOKUP(L_PC[[#This Row],[Profit center]],L_CC[Cost center],L_CC[Site])","v":"LN"},null,8]
["MIS code",null,"VN02V00501","VB/VH/Tuyến 09A",{"$f":"_xlfn.XLOOKUP(L_PC[[#This Row],[Profit center]],L_CC[Cost center],L_CC[Site])","v":"LN"},null,9]
[null,null,"VN02V00502","VB/VH/Tuyến 09A/Tài xế",{"$f":"_xlfn.XLOOKUP(L_PC[[#This Row],[Profit center]],L_CC[Cost center],L_CC[Site])","v":"LN"},null,10]
["Commit",null,"VN02V00503","VB/VH/Tuyến 09A/HDV",{"$f":"_xlfn.XLOOKUP(L_PC[[#This Row],[Profit center]],L_CC[Cost center],L_CC[Site])","v":"LN"},null,11]
[null,null,"VN02V00601","VB/VH/Tuyến 09B",{"$f":"_xlfn.XLOOKUP(L_PC[[#This Row],[Profit center]],L_CC[Cost center],L_CC[Site])","v":"LN"},null,12]
["Object",null,"VN02V00602","VB/VH/Tuyến 09B/Tài xế",{"$f":"_xlfn.XLOOKUP(L_PC[[#This Row],[Profit center]],L_CC[Cost center],L_CC[Site])","v":"LN"},null,13]
[null,null,"VN02V00603","VB/VH/Tuyến 09B/HDV",{"$f":"_xlfn.XLOOKUP(L_PC[[#This Row],[Profit center]],L_CC[Cost center],L_CC[Site])","v":"LN"},null,14]
["Asset",null,"VN02V00701","VB/VH/Tuyến 19",{"$f":"_xlfn.XLOOKUP(L_PC[[#This Row],[Profit center]],L_CC[Cost center],L_CC[Site])","v":"LN"},null,15]
[null,null,"VN02V00702","VB/VH/Tuyến 19/Tài xế",{"$f":"_xlfn.XLOOKUP(L_PC[[#This Row],[Profit center]],L_CC[Cost center],L_CC[Site])","v":"LN"},null,16]
["Statistic",null,"VN02V00703","VB/VH/Tuyến 19/HDV",{"$f":"_xlfn.XLOOKUP(L_PC[[#This Row],[Profit center]],L_CC[Cost center],L_CC[Site])","v":"LN"},null,17]
[null,null,"VN02V00801","VB/VH/Tuyến 21A",{"$f":"_xlfn.XLOOKUP(L_PC[[#This Row],[Profit center]],L_CC[Cost center],L_CC[Site])","v":"LN"},null,18]
["Financial",null,"VN02V00802","VB/VH/Tuyến 21A/Tài xế",{"$f":"_xlfn.XLOOKUP(L_PC[[#This Row],[Profit center]],L_CC[Cost center],L_CC[Site])","v":"LN"},null,19]
[null,null,"VN02V00803","VB/VH/Tuyến 21A/HDV",{"$f":"_xlfn.XLOOKUP(L_PC[[#This Row],[Profit center]],L_CC[Cost center],L_CC[Site])","v":"LN"},null,20]
["Trust",null,"VN02V00901","VB/VH/Tuyến 21B",{"$f":"_xlfn.XLOOKUP(L_PC[[#This Row],[Profit center]],L_CC[Cost center],L_CC[Site])","v":"LN"},null,21]
[null,null,"VN02V00902","VB/VH/Tuyến 21B/Tài xế",{"$f":"_xlfn.XLOOKUP(L_PC[[#This Row],[Profit center]],L_CC[Cost center],L_CC[Site])","v":"LN"},null,22]
["Sub",null,"VN02V00903","VB/VH/Tuyến 21B/HDV",{"$f":"_xlfn.XLOOKUP(L_PC[[#This Row],[Profit center]],L_CC[Cost center],L_CC[Site])","v":"LN"},null,23]
[null,null,"VN02V01001","VB/VH/Tuyến 37",{"$f":"_xlfn.XLOOKUP(L_PC[[#This Row],[Profit center]],L_CC[Cost center],L_CC[Site])","v":"LN"},null,24]
["Fund",null,"VN02V01002","VB/VH/Tuyến 37/Tài xế",{"$f":"_xlfn.XLOOKUP(L_PC[[#This Row],[Profit center]],L_CC[Cost center],L_CC[Site])","v":"LN"},null,25]
[null,null,"VN02V01003","VB/VH/Tuyến 37/HDV",{"$f":"_xlfn.XLOOKUP(L_PC[[#This Row],[Profit center]],L_CC[Cost center],L_CC[Site])","v":"LN"},null,26]
["Other",null,"VN02V01101","VB/VH/Tuyến 125",{"$f":"_xlfn.XLOOKUP(L_PC[[#This Row],[Profit center]],L_CC[Cost center],L_CC[Site])","v":"LN"},null,27]
[null,null,"VN02V01102","VB/VH/Tuyến 125/Tài xế",{"$f":"_xlfn.XLOOKUP(L_PC[[#This Row],[Profit center]],L_CC[Cost center],L_CC[Site])","v":"LN"},null,28]
[null,null,"VN02V01103","VB/VH/Tuyến 125/HDV",{"$f":"_xlfn.XLOOKUP(L_PC[[#This Row],[Profit center]],L_CC[Cost center],L_CC[Site])","v":"LN"},null,29]
[null,null,"VN02V08001","LN/Xưởng",{"$f":"_xlfn.XLOOKUP(L_PC[[#This Row],[Profit center]],L_CC[Cost center],L_CC[Site])","v":"HO"},null,30]
[null,null,"VN02V09001","LN/Ban giám đốc",{"$f":"_xlfn.XLOOKUP(L_PC[[#This Row],[Profit center]],L_CC[Cost center],L_CC[Site])","v":"HO"},null,31]
[null,null,"VN02V09101","LN/P. Hành chính - Nhân sự",{"$f":"_xlfn.XLOOKUP(L_PC[[#This Row],[Profit center]],L_CC[Cost center],L_CC[Site])","v":"HO"},null,32]
[null,null,"VN02V09201","LN/P. Kế toán",{"$f":"_xlfn.XLOOKUP(L_PC[[#This Row],[Profit center]],L_CC[Cost center],L_CC[Site])","v":"HO"},null,33]

{"sheet":"Cost center","index":5,"n_rows":38,"n_cols":18,"rows_kept":38,"cut":false,"hidden":false,"merged":[]}
[{"$f":"Range2(L_CC[[Site]:[Priority CI]])","v":"E6:I38"}]
[{"$f":"Site!A2","v":"𝓛𝓲𝓮𝓷𝓝𝓲𝓷𝓱"},null,"COST CENTER (BỘ PHẬN NGÂN SÁCH)",null,"Là bộ phận phát sinh chi phí trong doanh nghiệp, thông thường được thiết lập gắn liền với bộ phận theo tổ chức của doanh nghiệp để thuận tiện lập và quản lý ngân sách. Cost center mang ý nghĩa là bộ phận (center) hơn nghĩa chi phí (cost), nên nó cũng được sử dụng để ghi nhận doanh thu"]
[{"$f":"Site!A3","v":"𝓑𝓾𝓼"},null,null,null,"Cost center là mã bắt buộc, là mã được sử dụng để lập ngân sách."]
[null,null,null,null,"⏬","⏬","⏬","⏬","⏬"]
[null,"_","Cost center","CC name","Site","Fund center","PC center","FS code","Priority CI","Faculty","Properties","#","_","FC name","PC name","FS name","Trùng","Lồng"]
["Site",null,"VN02V00101","VB/Vận hành","LN","VN02V00101","VN02V00101",null,null,null,null,null,null,{"$f":"_xlfn.XLOOKUP(L_CC[Fund center],L_FC[Fund center],L_FC[FC name],\"-\")","v":"LN/Vận hành"},{"$f":"_xlfn.XLOOKUP(L_CC[PC center],L_PC[Profit center],L_PC[PC name],\"-\")","v":"VB/Vận hành"},{"$f":"_xlfn.XLOOKUP(L_CC[FS code],L_FS[FS code],L_FS[FS name],\"-\")","v":"-"},{"$f":"_Duplicate(L_CC[Cost center])","v":"null"},{"$f":"_Integrate(L_CC[Cost center])","v":"null"}]
[null,null,"VN02V00202","VB/KSCL & ANAT","LN","VN02V00101","VN02V00202",null,null,null,null,null,null,"LN/Vận hành","VB/KSCL & ANAT","-"]
["Fund center",null,"VN02V00301","VB/VH/Tuyến 08A","LN","VN02V00101","VN02V00301",null,null,null,null,null,null,"LN/Vận hành","VB/VH/Tuyến 08A","-"]
[null,null,"VN02V00302","VB/VH/Tuyến 08A/Tài xế","LN","VN02V00101","VN02V00302",null,null,null,null,null,null,"LN/Vận hành","VB/VH/Tuyến 08A/Tài xế","-"]
["Profit center",null,"VN02V00303","VB/VH/Tuyến 08A/HDV","LN","VN02V00101","VN02V00303",null,null,null,null,null,null,"LN/Vận hành","VB/VH/Tuyến 08A/HDV","-"]
[null,null,"VN02V00401","VB/VH/Tuyến 08B","LN","VN02V00101","VN02V00401",null,null,null,null,null,null,"LN/Vận hành","VB/VH/Tuyến 08B","-"]
["Cost center",null,"VN02V00402","VB/VH/Tuyến 08B/Tài xế","LN","VN02V00101","VN02V00402",null,null,null,null,null,null,"LN/Vận hành","VB/VH/Tuyến 08B/Tài xế","-"]
[null,null,"VN02V00403","VB/VH/Tuyến 08B/HDV","LN","VN02V00101","VN02V00403",null,null,null,null,null,null,"LN/Vận hành","VB/VH/Tuyến 08B/HDV","-"]
["MIS code",null,"VN02V00501","VB/VH/Tuyến 09A","LN","VN02V00101","VN02V00501",null,null,null,null,null,null,"LN/Vận hành","VB/VH/Tuyến 09A","-"]
[null,null,"VN02V00502","VB/VH/Tuyến 09A/Tài xế","LN","VN02V00101","VN02V00502",null,null,null,null,null,null,"LN/Vận hành","VB/VH/Tuyến 09A/Tài xế","-"]
["Commit",null,"VN02V00503","VB/VH/Tuyến 09A/HDV","LN","VN02V00101","VN02V00503",null,null,null,null,null,null,"LN/Vận hành","VB/VH/Tuyến 09A/HDV","-"]
[null,null,"VN02V00601","VB/VH/Tuyến 09B","LN","VN02V00101","VN02V00601",null,null,null,null,null,null,"LN/Vận hành","VB/VH/Tuyến 09B","-"]
["Object",null,"VN02V00602","VB/VH/Tuyến 09B/Tài xế","LN","VN02V00101","VN02V00602",null,null,null,null,null,null,"LN/Vận hành","VB/VH/Tuyến 09B/Tài xế","-"]
[null,null,"VN02V00603","VB/VH/Tuyến 09B/HDV","LN","VN02V00101","VN02V00603",null,null,null,null,null,null,"LN/Vận hành","VB/VH/Tuyến 09B/HDV","-"]
["Asset",null,"VN02V00701","VB/VH/Tuyến 19","LN","VN02V00101","VN02V00701",null,null,null,null,null,null,"LN/Vận hành","VB/VH/Tuyến 19","-"]
[null,null,"VN02V00702","VB/VH/Tuyến 19/Tài xế","LN","VN02V00101","VN02V00702",null,null,null,null,null,null,"LN/Vận hành","VB/VH/Tuyến 19/Tài xế","-"]
["Statistic",null,"VN02V00703","VB/VH/Tuyến 19/HDV","LN","VN02V00101","VN02V00703",null,null,null,null,null,null,"LN/Vận hành","VB/VH/Tuyến 19/HDV","-"]
[null,null,"VN02V00801","VB/VH/Tuyến 21A","LN","VN02V00101","VN02V00801",null,null,null,null,null,null,"LN/Vận hành","VB/VH/Tuyến 21A","-"]
["Financial",null,"VN02V00802","VB/VH/Tuyến 21A/Tài xế","LN","VN02V00101","VN02V00802",null,null,null,null,null,null,"LN/Vận hành","VB/VH/Tuyến 21A/Tài xế","-"]
[null,null,"VN02V00803","VB/VH/Tuyến 21A/HDV","LN","VN02V00101","VN02V00803",null,null,null,null,null,null,"LN/Vận hành","VB/VH/Tuyến 21A/HDV","-"]
["Trust",null,"VN02V00901","VB/VH/Tuyến 21B","LN","VN02V00101","VN02V00901",null,null,null,null,null,null,"LN/Vận hành","VB/VH/Tuyến 21B","-"]
[null,null,"VN02V00902","VB/VH/Tuyến 21B/Tài xế","LN","VN02V00101","VN02V00902",null,null,null,null,null,null,"LN/Vận hành","VB/VH/Tuyến 21B/Tài xế","-"]
["Sub",null,"VN02V00903","VB/VH/Tuyến 21B/HDV","LN","VN02V00101","VN02V00903",null,null,null,null,null,null,"LN/Vận hành","VB/VH/Tuyến 21B/HDV","-"]
[null,null,"VN02V01001","VB/VH/Tuyến 37","LN","VN02V00101","VN02V01001",null,null,null,null,null,null,"LN/Vận hành","VB/VH/Tuyến 37","-"]
["Fund",null,"VN02V01002","VB/VH/Tuyến 37/Tài xế","LN","VN02V00101","VN02V01002",null,null,null,null,null,null,"LN/Vận hành","VB/VH/Tuyến 37/Tài xế","-"]
[null,null,"VN02V01003","VB/VH/Tuyến 37/HDV","LN","VN02V00101","VN02V01003",null,null,null,null,null,null,"LN/Vận hành","VB/VH/Tuyến 37/HDV","-"]
["Other",null,"VN02V01101","VB/VH/Tuyến 125","LN","VN02V00101","VN02V01101",null,null,null,null,null,null,"LN/Vận hành","VB/VH/Tuyến 125","-"]
[null,null,"VN02V01102","VB/VH/Tuyến 125/Tài xế","LN","VN02V00101","VN02V01102",null,null,null,null,null,null,"LN/Vận hành","VB/VH/Tuyến 125/Tài xế","-"]
[null,null,"VN02V01103","VB/VH/Tuyến 125/HDV","LN","VN02V00101","VN02V01103",null,null,null,null,null,null,"LN/Vận hành","VB/VH/Tuyến 125/HDV","-"]
[null,null,"VN02V08001","LN/Xưởng","HO","VN02V08001","VN02V08001",null,null,null,null,null,null,"LN/Xưởng","LN/Xưởng","-"]
[null,null,"VN02V09001","LN/Ban giám đốc","HO","VN02V09001","VN02V09001",null,null,null,null,null,null,"LN/Ban giám đốc","LN/Ban giám đốc","-"]
[null,null,"VN02V09101","LN/P. Hành chính - Nhân sự","HO","VN02V09101","VN02V09101",null,null,null,null,null,null,"LN/P. Hành chính - Nhân sự","LN/P. Hành chính - Nhân sự","-"]
[null,null,"VN02V09201","LN/P. Kế toán","HO","VN02V09201","VN02V09201",null,null,null,null,null,null,"LN/P. Kế toán","LN/P. Kế toán","-"]

{"sheet":"MIS code","index":6,"n_rows":77,"n_cols":10,"rows_kept":77,"cut":false,"hidden":false,"merged":[]}
[{"$f":"Range2(L_Mis[Allocate])","v":"E6:E77"}]
[{"$f":"Site!A2","v":"𝓛𝓲𝓮𝓷𝓝𝓲𝓷𝓱"},null,"MIS CODE (MÃ LẬP BÁO CÁO QUẢN TRỊ)",null,"Là danh mục mã được phân loại để tổng hợp trình bày số liệu kết quả kinh doanh quản trị."]
[{"$f":"Site!A3","v":"𝓑𝓾𝓼"},null,null,null,"MIS code là để tổng hợp ngân sách theo chiều khoản mục, không phải là mã để lập ngân sách. Mã MIS được tính từ mã Commit (CI). Trường hợp đơn giản có thể map 1 mã MIS = 1 mã CI"]
[null,null,{"$f":"_RandExceptT(100,999,L_Mis[MIS code])","v":520},null,"⏬"]
[null,"_","MIS code","MIS name","Allocate","Properties","#","_","Trùng","Lồng"]
["Site",null,"MIS.DT011","Doanh thu từ bán vé",null,"income",null,null,{"$f":"_Duplicate(L_Mis[MIS code])","v":"null"},{"$f":"_Integrate(L_Mis[MIS code])","v":"null"}]
[null,null,"MIS.DT012","Doanh thu trợ cấp, trợ giá",null,"income"]
["Fund center",null,"MIS.DT013","Doanh thu trợ giá khác ",null,"income"]
[null,null,"MIS.DT031","Doanh thu quảng cáo",null,"income"]
["Profit center",null,"MIS.DT032","Doanh thu dịch vụ khác",null,"income"]
[null,null,"MIS.DT041","Doanh thu sửa chữa bảo dưỡng xe",null,"income"]
["Cost center",null,"MIS.DT042","Doanh thu sửa chữa bảo dưỡng-Phụ tùng",null,"income"]
[null,null,"MIS.DT043","Doanh thu bán pin XMĐ",null,"income"]
["MIS code",null,"MIS.DT051","Doanh thu dịch vụ sạc pin V-green",null,"income"]
[null,null,"MIS.CPNS010","Chi phí lương"]
["Commit",null,"MIS.CPNS011","Chi phí lương ngoài giờ"]
[null,null,"MIS.CPNS012","Chi phí lương tháng 13"]
["Object",null,"MIS.CPNS02","Chi phí thưởng"]
[null,null,"MIS.CPNS03","Chi phí BHXH, BHYT, BHTN"]
["Asset",null,"MIS.CPNS041","Chi phí phúc lợi 4,5tr"]
[null,null,"MIS.CPNS042","Phúc lợi HĐ tập thể, teambuilding"]
["Statistic",null,"MIS.CPNS043","Phúc lợi khám sức khỏe"]
[null,null,"MIS.CPNS044","Phúc lợi BH Sức khỏe"]
["Financial",null,"MIS.CPNS045","Phúc lợi khác"]
[null,null,"MIS.CPNS046","Chi phí thưởng tay nghề"]
["Trust",null,"MIS.CPNS047","Chi phí phụ cấp, trợ cấp thôi việc"]
[null,null,"MIS.CPNS048","Chi phí phụ cấp hỗ trợ lượt, chuyến"]
["Sub",null,"MIS.CPNS049","Chi phí phụ cấp khác"]
[null,null,"MIS.CPVT01","Chi phí điện Ebus"]
["Fund",null,"MIS.CPVT02","Chi phí công nghệ thông tin"]
[null,null,"MIS.CPVT03","Chi phí điện thoại, internet"]
["Other",null,"MIS.CPVT04","CP BDSC"]
[null,null,"MIS.CPVT05","CP bảo trì, PCCC, vật tư tiêu hao"]
[null,null,"MIS.CPVT06","Phí cầu đường, bến bãi"]
[null,null,"MIS.CPVT07","Chi phí duy trì xe"]
[null,null,"MIS.CPVT08","Phí bảo trì đường bộ"]
[null,null,"MIS.CPVT09","Đăng kiểm (khám xe)"]
[null,null,"MIS.CPVT10","CP Bảo hiểm trách nhiệm dân sự"]
[null,null,"MIS.CPVT11","Chi phí thuế đất nông nghiệp"]
[null,null,"MIS.CPVT12","CP Thuê địa điểm"]
[null,null,"MIS.CPVT13","BH hành khách"]
[null,null,"MIS.CPVT14","CP Bảo hiểm tài sản"]
[null,null,"MIS.CPVT15","CP Bảo hiểm vật chất"]
[null,null,"MIS.CPVT16","CP In vé, thẻ"]
[null,null,"MIS.CPVT17","Chi phí đền bù tổn thất khách hàng"]
[null,null,"MIS.CPVT18","Chi phí hỗ trợ, chăm sóc khách hàng"]
[null,null,"MIS.CPVT19","Chi phí Đồng phục"]
[null,null,"MIS.CPVT20","Chi phí Nhân sự thuê ngoài, thời vụ"]
[null,null,"MIS.CPVT21","Chi phí sửa chữa trạm sạc"]
[null,null,"MIS.CPVT22","Chi phí thuê xe"]
[null,null,"MIS.CPVT23","Chi phí vận tải khác"]
[null,null,"MIS.CPXDV01","Giá vốn phụ tùng"]
[null,null,"MIS.CPXDV02","CP vật tư tiêu hao"]
[null,null,"MIS.CPXDV03","CP khác"]
[null,null,"MIS.CPSM01","Chi phí S&M"]
[null,null,"MIS.CPAG01","Chi phí công tác (CTP, vé máy bay, khách sạn, taxi công tác)"]
[null,null,"MIS.CPAG02","Chi phí công cụ dụng cụ vật tư tiêu hao khối hỗ trợ"]
[null,null,"MIS.CPAG03","Chi phí vận chuyển, taxi"]
[null,null,"MIS.CPAG04","CP Tiếp khách"]
[null,null,"MIS.CPAG05","Chi phí đào tạo"]
[null,null,"MIS.CPAG06","Chi phí tuyển dụng"]
[null,null,"MIS.CPAG07","Chi phí nhu yếu phẩm"]
[null,null,"MIS.CPAG08","Chi phí văn phòng (văn phòng phẩm, in ấn, chuyển phát)"]
[null,null,"MIS.CPAG09","Phí ngân hàng"]
[null,null,"MIS.CPAG10","Thuế môn bài, thuế, Phí khác"]
[null,null,"MIS.CPAG11","Phí chuyên gia, tư vấn"]
[null,null,"MIS.CPAG12","Chi phí làm giấy phép, giấy tờ"]
[null,null,"MIS.CPAG13","Chi phí dịch vụ mua ngoài"]
[null,null,"MIS.CPAG14","Chi phí sửa chữa văn phòng"]
[null,null,"MIS.CPAG15","Chi phí A&G khác"]
[null,null,"MIS.KHHĐ","Capex hoạt động (CCDC + VP)"]
[null,null,"MIS.KHVH","Capex vận hành (Trạm sạc + nhà xưởng + thiết bị sửa chữa)"]
[null,null,"MIS.KHPTVT","Khấu hao TSCĐ Phương tiện vận tải"]
[null,null,"MIS.DTK","Thu khác",null,"income"]
[null,null,"MIS.CPK","Chi phí khác"]
[null,null,"MIS.DTTC","Thu nhập tài chính",null,"income"]
[null,null,"MIS.CPTC","Chi phí tài chính"]

{"sheet":"Commit","index":7,"n_rows":77,"n_cols":13,"rows_kept":77,"cut":false,"hidden":false,"merged":[]}
[{"$f":"Range2(L_CI[[CI type]:[FS code]])","v":"E6:G77"}]
[{"$f":"Site!A2","v":"𝓛𝓲𝓮𝓷𝓝𝓲𝓷𝓱"},null,"COMMIT (MÃ KHOẢN MỤC)",null,"Là danh mục chi tiết được sử dụng để lập ngân sách và kiểm soát ngân sách"]
[{"$f":"Site!A3","v":"𝓑𝓾𝓼"},null,null,null,null,null,null,null,10]
[null,null,null,null,"⏬","⏬","⏬"]
[null,"_","CI code","CI name","CI type","MIS code","FS code","Properties","#","_","MIS name","Trùng","Lồng"]
["Site",null,"MIS.DT011","Doanh thu từ bán vé","Doanh thu","MIS.DT011","001_",null,null,null,{"$f":"_xlfn.XLOOKUP(L_CI[MIS code],L_Mis[MIS code],L_Mis[MIS name],\"-\")","v":"Doanh thu từ bán vé"},{"$f":"_Duplicate(L_CI[CI code])","v":"null"},{"$f":"_Integrate(L_CI[CI code])","v":"null"}]
[null,null,"MIS.DT012","Doanh thu trợ cấp, trợ giá","Doanh thu","MIS.DT012","001_",null,null,null,"Doanh thu trợ cấp, trợ giá"]
["Fund center",null,"MIS.DT013","Doanh thu trợ giá khác ","Doanh thu","MIS.DT013","001_",null,null,null,"Doanh thu trợ giá khác "]
[null,null,"MIS.DT031","Doanh thu quảng cáo","Doanh thu","MIS.DT031","001_",null,null,null,"Doanh thu quảng cáo"]
["Profit center",null,"MIS.DT032","Doanh thu dịch vụ khác","Doanh thu","MIS.DT032","001_",null,null,null,"Doanh thu dịch vụ khác"]
[null,null,"MIS.DT041","Doanh thu sửa chữa bảo dưỡng xe","Doanh thu","MIS.DT041","001_",null,null,null,"Doanh thu sửa chữa bảo dưỡng xe"]
["Cost center",null,"MIS.DT042","Doanh thu sửa chữa bảo dưỡng-Phụ tùng","Doanh thu","MIS.DT042","001_",null,null,null,"Doanh thu sửa chữa bảo dưỡng-Phụ tùng"]
[null,null,"MIS.DT043","Doanh thu bán pin XMĐ","Doanh thu","MIS.DT043","001_",null,null,null,"Doanh thu bán pin XMĐ"]
["MIS code",null,"MIS.DT051","Doanh thu dịch vụ sạc pin V-green","Doanh thu","MIS.DT051","001_",null,null,null,"Doanh thu dịch vụ sạc pin V-green"]
[null,null,"MIS.CPNS010","Chi phí lương","Chi phí","MIS.CPNS010","026_",null,null,null,"Chi phí lương"]
["Commit",null,"MIS.CPNS011","Chi phí lương ngoài giờ","Chi phí","MIS.CPNS011","026_",null,null,null,"Chi phí lương ngoài giờ"]
[null,null,"MIS.CPNS012","Chi phí lương tháng 13","Chi phí","MIS.CPNS012","026_",null,null,null,"Chi phí lương tháng 13"]
["Object",null,"MIS.CPNS02","Chi phí thưởng","Chi phí","MIS.CPNS02","026_",null,null,null,"Chi phí thưởng"]
[null,null,"MIS.CPNS03","Chi phí BHXH, BHYT, BHTN","Chi phí","MIS.CPNS03","026_",null,null,null,"Chi phí BHXH, BHYT, BHTN"]
["Asset",null,"MIS.CPNS041","Chi phí phúc lợi 4,5tr","Chi phí","MIS.CPNS041","026_",null,null,null,"Chi phí phúc lợi 4,5tr"]
[null,null,"MIS.CPNS042","Phúc lợi HĐ tập thể, teambuilding","Chi phí","MIS.CPNS042","026_",null,null,null,"Phúc lợi HĐ tập thể, teambuilding"]
["Statistic",null,"MIS.CPNS043","Phúc lợi khám sức khỏe","Chi phí","MIS.CPNS043","026_",null,null,null,"Phúc lợi khám sức khỏe"]
[null,null,"MIS.CPNS044","Phúc lợi BH Sức khỏe","Chi phí","MIS.CPNS044","026_",null,null,null,"Phúc lợi BH Sức khỏe"]
["Financial",null,"MIS.CPNS045","Phúc lợi khác","Chi phí","MIS.CPNS045","026_",null,null,null,"Phúc lợi khác"]
[null,null,"MIS.CPNS046","Chi phí thưởng tay nghề","Chi phí","MIS.CPNS046","026_",null,null,null,"Chi phí thưởng tay nghề"]
["Trust",null,"MIS.CPNS047","Chi phí phụ cấp, trợ cấp thôi việc","Chi phí","MIS.CPNS047","026_",null,null,null,"Chi phí phụ cấp, trợ cấp thôi việc"]
[null,null,"MIS.CPNS048","Chi phí phụ cấp hỗ trợ lượt, chuyến","Chi phí","MIS.CPNS048","026_",null,null,null,"Chi phí phụ cấp hỗ trợ lượt, chuyến"]
["Sub",null,"MIS.CPNS049","Chi phí phụ cấp khác","Chi phí","MIS.CPNS049","026_",null,null,null,"Chi phí phụ cấp khác"]
[null,null,"MIS.CPVT01","Chi phí điện Ebus","Chi phí","MIS.CPVT01","026_",null,null,null,"Chi phí điện Ebus"]
["Fund",null,"MIS.CPVT02","Chi phí công nghệ thông tin","Chi phí","MIS.CPVT02","026_",null,null,null,"Chi phí công nghệ thông tin"]
[null,null,"MIS.CPVT03","Chi phí điện thoại, internet","Chi phí","MIS.CPVT03","026_",null,null,null,"Chi phí điện thoại, internet"]
["Other",null,"MIS.CPVT04","CP BDSC","Chi phí","MIS.CPVT04","026_",null,null,null,"CP BDSC"]
[null,null,"MIS.CPVT05","CP bảo trì, PCCC, vật tư tiêu hao","Chi phí","MIS.CPVT05","026_",null,null,null,"CP bảo trì, PCCC, vật tư tiêu hao"]
[null,null,"MIS.CPVT06","Phí cầu đường, bến bãi","Chi phí","MIS.CPVT06","026_",null,null,null,"Phí cầu đường, bến bãi"]
[null,null,"MIS.CPVT07","Chi phí duy trì xe","Chi phí","MIS.CPVT07","026_",null,null,null,"Chi phí duy trì xe"]
[null,null,"MIS.CPVT08","Phí bảo trì đường bộ","Chi phí","MIS.CPVT08","026_",null,null,null,"Phí bảo trì đường bộ"]
[null,null,"MIS.CPVT09","Đăng kiểm (khám xe)","Chi phí","MIS.CPVT09","026_",null,null,null,"Đăng kiểm (khám xe)"]
[null,null,"MIS.CPVT10","CP Bảo hiểm trách nhiệm dân sự","Chi phí","MIS.CPVT10","026_",null,null,null,"CP Bảo hiểm trách nhiệm dân sự"]
[null,null,"MIS.CPVT11","Chi phí thuế đất nông nghiệp","Chi phí","MIS.CPVT11","026_",null,null,null,"Chi phí thuế đất nông nghiệp"]
[null,null,"MIS.CPVT12","CP Thuê địa điểm","Chi phí","MIS.CPVT12","026_",null,null,null,"CP Thuê địa điểm"]
[null,null,"MIS.CPVT13","BH hành khách","Chi phí","MIS.CPVT13","026_",null,null,null,"BH hành khách"]
[null,null,"MIS.CPVT14","CP Bảo hiểm tài sản","Chi phí","MIS.CPVT14","026_",null,null,null,"CP Bảo hiểm tài sản"]
[null,null,"MIS.CPVT15","CP Bảo hiểm vật chất","Chi phí","MIS.CPVT15","026_",null,null,null,"CP Bảo hiểm vật chất"]
[null,null,"MIS.CPVT16","CP In vé, thẻ","Chi phí","MIS.CPVT16","026_",null,null,null,"CP In vé, thẻ"]
[null,null,"MIS.CPVT17","Chi phí đền bù tổn thất khách hàng","Chi phí","MIS.CPVT17","026_",null,null,null,"Chi phí đền bù tổn thất khách hàng"]
[null,null,"MIS.CPVT18","Chi phí hỗ trợ, chăm sóc khách hàng","Chi phí","MIS.CPVT18","026_",null,null,null,"Chi phí hỗ trợ, chăm sóc khách hàng"]
[null,null,"MIS.CPVT19","Chi phí Đồng phục","Chi phí","MIS.CPVT19","026_",null,null,null,"Chi phí Đồng phục"]
[null,null,"MIS.CPVT20","Chi phí Nhân sự thuê ngoài, thời vụ","Chi phí","MIS.CPVT20","026_",null,null,null,"Chi phí Nhân sự thuê ngoài, thời vụ"]
[null,null,"MIS.CPVT21","Chi phí sửa chữa trạm sạc","Chi phí","MIS.CPVT21","026_",null,null,null,"Chi phí sửa chữa trạm sạc"]
[null,null,"MIS.CPVT22","Chi phí thuê xe","Chi phí","MIS.CPVT22","026_",null,null,null,"Chi phí thuê xe"]
[null,null,"MIS.CPVT23","Chi phí vận tải khác","Chi phí","MIS.CPVT23","026_",null,null,null,"Chi phí vận tải khác"]
[null,null,"MIS.CPXDV01","Giá vốn phụ tùng","Chi phí","MIS.CPXDV01","026_",null,null,null,"Giá vốn phụ tùng"]
[null,null,"MIS.CPXDV02","CP vật tư tiêu hao","Chi phí","MIS.CPXDV02","026_",null,null,null,"CP vật tư tiêu hao"]
[null,null,"MIS.CPXDV03","CP khác","Chi phí","MIS.CPXDV03","026_",null,null,null,"CP khác"]
[null,null,"MIS.CPSM01","Chi phí S&M","Chi phí","MIS.CPSM01","026_",null,null,null,"Chi phí S&M"]
[null,null,"MIS.CPAG01","Chi phí công tác (CTP, vé máy bay, khách sạn, taxi công tác)","Chi phí","MIS.CPAG01","026_",null,null,null,"Chi phí công tác (CTP, vé máy bay, khách sạn, taxi công tác)"]
[null,null,"MIS.CPAG02","Chi phí công cụ dụng cụ vật tư tiêu hao khối hỗ trợ","Chi phí","MIS.CPAG02","026_",null,null,null,"Chi phí công cụ dụng cụ vật tư tiêu hao khối hỗ trợ"]
[null,null,"MIS.CPAG03","Chi phí vận chuyển, taxi","Chi phí","MIS.CPAG03","026_",null,null,null,"Chi phí vận chuyển, taxi"]
[null,null,"MIS.CPAG04","CP Tiếp khách","Chi phí","MIS.CPAG04","026_",null,null,null,"CP Tiếp khách"]
[null,null,"MIS.CPAG05","Chi phí đào tạo","Chi phí","MIS.CPAG05","026_",null,null,null,"Chi phí đào tạo","Z000999","Non Budget Control"]
[null,null,"MIS.CPAG06","Chi phí tuyển dụng","Chi phí","MIS.CPAG06","026_",null,null,null,"Chi phí tuyển dụng","Z000999_BP","NonBudget Control_BP"]
[null,null,"MIS.CPAG07","Chi phí nhu yếu phẩm","Chi phí","MIS.CPAG07","026_",null,null,null,"Chi phí nhu yếu phẩm","Z000999_GR","NonBudget Control_GR"]
[null,null,"MIS.CPAG08","Chi phí văn phòng (văn phòng phẩm, in ấn, chuyển phát)","Chi phí","MIS.CPAG08","026_",null,null,null,"Chi phí văn phòng (văn phòng phẩm, in ấn, chuyển phát)"]
[null,null,"MIS.CPAG09","Phí ngân hàng","Chi phí","MIS.CPAG09","026_",null,null,null,"Phí ngân hàng"]
[null,null,"MIS.CPAG10","Thuế môn bài, thuế, Phí khác","Chi phí","MIS.CPAG10","026_",null,null,null,"Thuế môn bài, thuế, Phí khác"]
[null,null,"MIS.CPAG11","Phí chuyên gia, tư vấn","Chi phí","MIS.CPAG11","026_",null,null,null,"Phí chuyên gia, tư vấn"]
[null,null,"MIS.CPAG12","Chi phí làm giấy phép, giấy tờ","Chi phí","MIS.CPAG12","026_",null,null,null,"Chi phí làm giấy phép, giấy tờ"]
[null,null,"MIS.CPAG13","Chi phí dịch vụ mua ngoài","Chi phí","MIS.CPAG13","026_",null,null,null,"Chi phí dịch vụ mua ngoài"]
[null,null,"MIS.CPAG14","Chi phí sửa chữa văn phòng","Chi phí","MIS.CPAG14","026_",null,null,null,"Chi phí sửa chữa văn phòng"]
[null,null,"MIS.CPAG15","Chi phí A&G khác","Chi phí","MIS.CPAG15","026_",null,null,null,"Chi phí A&G khác"]
[null,null,"MIS.KHHĐ","Capex hoạt động (CCDC + VP)","Chi phí","MIS.KHHĐ","026_",null,null,null,"Capex hoạt động (CCDC + VP)"]
[null,null,"MIS.KHVH","Capex vận hành (Trạm sạc + nhà xưởng + thiết bị sửa chữa)","Chi phí","MIS.KHVH","026_",null,null,null,"Capex vận hành (Trạm sạc + nhà xưởng + thiết bị sửa chữa)"]
[null,null,"MIS.KHPTVT","Khấu hao TSCĐ Phương tiện vận tải","Chi phí","MIS.KHPTVT","026_",null,null,null,"Khấu hao TSCĐ Phương tiện vận tải"]
[null,null,"MIS.DTK","Thu khác","TN tài chính","MIS.DTK","031_",null,null,null,"Thu khác"]
[null,null,"MIS.CPK","Chi phí khác","Chi phí","MIS.CPK","032_",null,null,null,"Chi phí khác"]
[null,null,"MIS.DTTC","Thu nhập tài chính","TN tài chính","MIS.DTTC","021_",null,null,null,"Thu nhập tài chính"]
[null,null,"MIS.CPTC","Chi phí tài chính","Chi phí","MIS.CPTC","022_",null,null,null,"Chi phí tài chính"]

{"sheet":"Object","index":8,"n_rows":32,"n_cols":10,"rows_kept":32,"cut":false,"hidden":false,"merged":[]}
[{"$f":"Range2(L_OJ[Site])","v":"E6:E24"}]
[{"$f":"Site!A2","v":"𝓛𝓲𝓮𝓷𝓝𝓲𝓷𝓱"},null,"OBJECT CODE (MÃ ĐỐI TƯỢNG DỊCH VỤ)",null,"Ví dụ: tuyến xe, tòa nhà"]
[{"$f":"Site!A3","v":"𝓑𝓾𝓼"}]
[]
[null,"_","Object","Object name","Site","Properties","#","_","Trùng","Lồng"]
["Site",null,"08A_","Long Biên - Đông Mỹ","LN",null,null,null,{"$f":"_Duplicate(L_OJ[Object])","v":"null"},{"$f":"_Integrate(L_OJ[Object])","v":"null"}]
[null,null,"08B_","Long Biên - Vạn Phúc (Thanh Trì)","LN"]
["Fund center",null,"09A_","Trần Khánh Dư - Cầu Giấy - ĐH Mỏ","LN"]
[null,null,"09B_","Trần Khánh Dư - Công viên Thống Nhất - Bến xe Mỹ Đình","LN"]
["Profit center",null,"125_","BX Thường Tín- Tế Tiêu","LN"]
[null,null,"19_","Trần Khánh Dư - HV Chính sách và phát triển","LN"]
["Cost center",null,"21A_","Bến xe Giáp Bát - Bến xe Yên Nghĩa","LN"]
[null,null,"21B_","Duyên Thái - Bến xe Mỹ Đình","LN"]
["MIS code",null,"37_","Bến xe Giáp Bát - Chương Mỹ","LN"]
[null,null,"T4_","Tuyến T4","LN"]
["Commit",null,"T5_","Tuyến T5","LN"]
[null,null,"T6_","Tuyến T6","LN"]
["Object",null,"T7_","Tuyến T7","LN"]
[null,null,"T8_","Tuyến T8","LN"]
["Asset",null,"VN02V09101_","Hành chính - Nhân sự","HO"]
[null,null,"VN02V09201_","Kế toán","HO"]
["Statistic",null,"VN02V00101_","Vận hành","HO"]
[null,null,"VN02V08001_","Xưởng","HO"]
["Financial",null,"VN02V09001_","Ban giám đốc","HO"]
[]
["Trust"]
[]
["Sub"]
[]
["Fund"]
[]
["Other"]

{"sheet":"Asset","index":9,"n_rows":32,"n_cols":10,"rows_kept":32,"cut":false,"hidden":false,"merged":[]}
[]
[{"$f":"Site!A2","v":"𝓛𝓲𝓮𝓷𝓝𝓲𝓷𝓱"},null,"ASSET (PHÂN LOẠI TÀI SẢN)","Là danh mục để phân loại tài sản khi lập ngân sách CAPEX"]
[{"$f":"Site!A3","v":"𝓑𝓾𝓼"}]
[null,null,null,"⏬"]
[null,"_","Asset type","TK NG","Properties","#","_","Tên tài khoản","Trùng","Lồng"]
["Site",null,"Mua sắm CCDC & TSCĐ hoạt động","220_",null,1,null,{"$f":"_xlfn.XLOOKUP(L_AS[TK NG],L_FS[FS code],L_FS[FS name],\"-\")","v":"Tài sản cố định"},{"$f":"_Duplicate(L_AS[Asset type])","v":"null"},{"$f":"_Integrate(L_AS[Asset type])","v":"null"}]
[null,null,"CP Hệ thống","220_",null,2,null,"Tài sản cố định"]
["Fund center",null,"CP Mua phương tiện Ebus","220_",null,3,null,"Tài sản cố định"]
[null,null,"CP Đầu tư thiết bị xưởng sửa chữa dịch vụ Ebus","240_",null,4,null,"Tài sản dở dang dài hạn"]
["Profit center",null,"CP Đầu tư Trạm sạc","240_",null,5,null,"Tài sản dở dang dài hạn"]
[null,null,"Hạ tầng điện trạm sạc","240_",null,6,null,"Tài sản dở dang dài hạn"]
["Cost center"]
[]
["MIS code"]
[]
["Commit"]
[]
["Object"]
[]
["Asset"]
[]
["Statistic"]
[]
["Financial"]
[]
["Trust"]
[]
["Sub"]
[]
["Fund"]
[]
["Other"]

{"sheet":"Statistic","index":10,"n_rows":32,"n_cols":10,"rows_kept":32,"cut":false,"hidden":false,"merged":[]}
[]
[{"$f":"Site!A2","v":"𝓛𝓲𝓮𝓷𝓝𝓲𝓷𝓱"},null,"STATISTIC (CHỈ TIÊU THỐNG KÊ)",null,"Là danh mục các chỉ tiêu thống kê hoạt động, danh mục này chủ yếu là các chỉ tiêu phi tài chính"]
[{"$f":"Site!A3","v":"𝓑𝓾𝓼"}]
[null,null,{"$f":"_RandExceptT(10,90,L_ST[Statistics])","v":53}]
[null,"_","Statistics","Statistics name","Unit","Properties","#",null,"Trùng","Lồng"]
["Site",null,"CT10","Số xe kế hoạch","Xe",null,3,null,{"$f":"_Duplicate(L_ST[Statistics])","v":"null"},{"$f":"_Integrate(L_ST[Statistics])","v":"null"}]
[null,null,"CT13","Số xe kế hoạch quy đổi","Xe",null,4]
["Fund center",null,"CT21","Số xe vận doanh","Xe",null,9]
[null,null,"CT19","Số xe vận doanh quy đổi","Xe",null,10]
["Profit center",null,"CT23","Số Km vận hành","Km",null,11]
[null,null,"CT15","Số km nghiệm thu","Km",null,12]
["Cost center"]
[]
["MIS code"]
[]
["Commit"]
[]
["Object"]
[]
["Asset"]
[]
["Statistic"]
[]
["Financial"]
[]
["Trust"]
[]
["Sub"]
[]
["Fund"]
[]
["Other"]

{"sheet":"Financial","index":11,"n_rows":53,"n_cols":11,"rows_kept":53,"cut":false,"hidden":false,"merged":[]}
[{"$f":"Range2(L_FS[BS code])","v":"E6:E53"}]
[{"$f":"Site!A2","v":"𝓛𝓲𝓮𝓷𝓝𝓲𝓷𝓱"},null,"FINANCIAL (CHỈ TIÊU BCTC)",null,"Là chỉ tiêu báo cáo tài chính, được nội suy ra từ các mã CI và Cost center, để lập báo cáo tài chính dự phóng"]
[{"$f":"Site!A3","v":"𝓑𝓾𝓼"},null,null,null,null,null,null,null,"CASH FLOW"]
[null,null,null,null,"⏬","⏬"]
[null,"_","FS code","FS name","BS code","No","Properties",null,"CF code","CF name","Properties"]
["Site",null,"001_","Doanh thu bán hàng","421_",null,null,null,"01_","Tiền thu từ bán hàng và cung cấp dịch vụ và doanh "]
[null,null,"002_","Chiết khấu, giảm giá","421_",null,null,null,"02_","Tiền chi trả cho người cung cấp hàng hóa, dịch vụ"]
["Fund center",null,"011_","Giá vốn hàng bán","421_",null,null,null,"03_","Tiền chi trả người lao động"]
[null,null,"021_","Doanh thu tài chính","421_",null,null,null,"04_","Tiền lãi vay đã trả"]
["Profit center",null,"022_","Chi phí tài chính","421_",null,null,null,"05_","Thuế thu nhập doanh nghiệp đã nộp"]
[null,null,"025_","Chi phí bán hàng","421_",null,null,null,"06_","Tiền thu khác từ các hoạt động kinh doanh"]
["Cost center",null,"026_","Chi phí quản lý","421_",null,null,null,"07_","Tiền chi khác cho các hoạt động kinh doanh"]
[null,null,"031_","Thu thập khác","421_",null,null,null,"21_","Tiền chi để mua sắm và xây dựng TSCĐ các tài sản dài hạn"]
["MIS code",null,"032_","Chi phí khác","421_",null,null,null,"22_","Tiền thu từ thanh lý, nhượng bán TSCĐ tài sản dài hạn"]
[null,null,"110_","Tiền và các khoản tương đương tiền","110_",1,null,null,"23_","Tiền chi cho vay, mua công cụ nợ của đơn vị khác"]
["Commit",null,"120_","Các khoản đầu tư tài chính ngắn hạn","120_",1,null,null,"24_","Tiền thu hồi cho vay, bán lại công cụ nợ"]
[null,null,"130_","Các khoản phải thu ngắn hạn","130_",1,null,null,"25_","Tiền chi đầu tư góp vốn vào các đơn vị khác"]
["Object",null,"140_","Hàng tồn kho","140_",1,null,null,"26_","Tiền thu hồi đầu tư góp vốn vào các đơn vị khác"]
[null,null,"150_","Chi phí trả trước ngắn hạn","150_",1,null,null,"27_","Tiền thu lãi cho vay, cổ tức, lợi nhuận được chia"]
["Asset",null,"152_","Thuế GTGT được khấu trừ HĐKD","152_",1,null,null,"31_","Tiền thu từ phát hành cổ phiếu, nhận vốn góp của CSH"]
[null,null,"153_","Thuế GTGT được khấu trừ HĐĐT","153_",1,null,null,"32_","Tiền trả lại vốn góp cho các chủ sở hữu"]
["Statistic",null,"158_","Tài sản ngắn hạn khác","158_",1,null,null,"33_","Tiền thu từ đi vay"]
[null,null,"210_","Các khoản phải thu dài hạn","210_",1,null,null,"34_","Tiền trả nợ gốc vay"]
["Financial",null,"220_","Tài sản cố định","220_",1,null,null,"36_","Cổ tức và lợi nhuận đã trả cho CSH"]
[null,null,"223_","Hao mòn TSCĐ","223_",1]
["Trust",null,"231_","Bất động sản đầu tư","231_",1]
[null,null,"232_","Hao mòn BĐS đầu tư","232_",1]
["Sub",null,"240_","Tài sản dở dang dài hạn","240_",1]
[null,null,"250_","Các khoản đầu tư tài chính dài hạn","250_",1]
["Fund",null,"260_","Tổng tài sản dài hạn khác","260_",1]
[null,null,"269_","Lợi thế thương mại","269_",1]
["Other",null,"311_","Phải trả người bán ngắn hạn","311_",-1]
[null,null,"312_","Người mua trả tiền trước","312_",-1]
[null,null,"313_","Thuế và các khoản phải nộp NN","313_",-1]
[null,null,"314_","Phải trả nhân viên","314_",-1]
[null,null,"315_","Chi phí phải trả ngắn hạn","315_",-1]
[null,null,"318_","Doanh thu chưa thực hiện ngắn hạn","318_",-1]
[null,null,"319_","Các khoản phải trả ngắn hạn khác","319_",-1]
[null,null,"320_","Vay và nợ thuê tài chính ngắn hạn","320_",-1]
[null,null,"321_","Vay và nợ dài hạn đến hạn trả","321_",-1]
[null,null,"331_","Phải trả người bán dài hạn","331_",-1]
[null,null,"336_","Doanh thu chưa thực hiện dài hạn","336_",-1]
[null,null,"338_","Vay và nợ thuê tài chính dài hạn","338_",-1]
[null,null,"342_","Dự phòng phải trả dài hạn","342_",-1]
[null,null,"350_","Nợ dài hạn khác","350_",-1]
[null,null,"411_","Vốn đầu tư của chủ sở hữu","411_",-1]
[null,null,"412_","Thặng dư vốn cổ phần","412_",-1]
[null,null,"416_","Chênh lệch đánh giá lại tài sản","416_",-1]
[null,null,"421_","Lợi nhuận sau thuế chưa phân phối","421_",-1]
[null,null,"430_","Nguồn vốn khác","430_",-1]
[null,null,"621_","Chi phí NPL trực tiếp","421_"]
[null,null,"622_","Chi phí NC trực tiếp","421_"]
[null,null,"627_","Chi phí sản xuất chung","421_"]

{"sheet":"Trust","index":12,"n_rows":32,"n_cols":8,"rows_kept":32,"cut":false,"hidden":false,"merged":[]}
[]
[{"$f":"Site!A2","v":"𝓛𝓲𝓮𝓷𝓝𝓲𝓷𝓱"},null,"MỨC ĐỘ TIN CẬY","Là danh mục phân loại mức độ tin cậy của ngân sách"]
[{"$f":"Site!A3","v":"𝓑𝓾𝓼"}]
[]
[null,"_","Trust","Trust note","#",null,"Trùng","Lồng"]
["Site",null,"Xanh","Các khoản chi thường xuyên, có cơ sở lập",1,null,{"$f":"_Duplicate(L_TR[Trust])","v":"null"},{"$f":"_Integrate(L_TR[Trust])","v":"null"}]
[null,null,"Vàng","Các khoản chi thay đổi theo các kế hoạch nhưng không có công thức tính, cần có CBLĐ cấp cao hơn phê duyệt",2]
["Fund center",null,"Đỏ","Các khoản chi thay đổi tương ứng theo các kế hoạch (kiểm soát thông qua bộ ĐMHM) nhưng khi thay đổi kế hoạch thì Ngân sách chi phí không được cập nhật tương ứng",3]
[null,null,"Tím",null,4]
["Profit center"]
[]
["Cost center"]
[]
["MIS code"]
[]
["Commit"]
[]
["Object"]
[]
["Asset"]
[]
["Statistic"]
[]
["Financial"]
[]
["Trust"]
[]
["Sub"]
[]
["Fund"]
[]
["Other"]

{"sheet":"Sub","index":13,"n_rows":32,"n_cols":9,"rows_kept":32,"cut":false,"hidden":false,"merged":[]}
[]
[{"$f":"Site!A2","v":"𝓛𝓲𝓮𝓷𝓝𝓲𝓷𝓱"},null,"MÃ PHỤ"]
[{"$f":"Site!A3","v":"𝓑𝓾𝓼"}]
[]
[null,"_","Sub code","Sub name","Properties","#",null,"Trùng","Lồng"]
["Site",null,null,null,null,null,null,{"$f":"_Duplicate(L_SUB[[#This Row],[Sub code]])","v":"null"},{"$f":"_Integrate(L_SUB[[#This Row],[Sub code]])","v":"null"}]
[]
["Fund center"]
[]
["Profit center"]
[]
["Cost center"]
[]
["MIS code"]
[]
["Commit"]
[]
["Object"]
[]
["Asset"]
[]
["Statistic"]
[]
["Financial"]
[]
["Trust"]
[]
["Sub"]
[]
["Fund"]
[]
["Other"]

{"sheet":"Fund","index":14,"n_rows":32,"n_cols":8,"rows_kept":32,"cut":false,"hidden":false,"merged":[]}
[]
[{"$f":"Site!A2","v":"𝓛𝓲𝓮𝓷𝓝𝓲𝓷𝓱"},null,"NGUỒN QUỸ"]
[{"$f":"Site!A3","v":"𝓑𝓾𝓼"}]
[]
[null,"_","Fund","Fund name","#",null,"Trùng","Lồng"]
["Site",null,null,null,null,null,{"$f":"_Duplicate(L_FD[[#This Row],[Fund]])","v":"null"},{"$f":"_Integrate(L_FD[[#This Row],[Fund]])","v":"null"}]
[]
["Fund center"]
[]
["Profit center"]
[]
["Cost center"]
[]
["MIS code"]
[]
["Commit"]
[]
["Object"]
[]
["Asset"]
[]
["Statistic"]
[]
["Financial"]
[]
["Trust"]
[]
["Sub"]
[]
["Fund"]
[]
["Other"]

{"sheet":"Other","index":15,"n_rows":32,"n_cols":4,"rows_kept":32,"cut":false,"hidden":false,"merged":[]}
[]
[{"$f":"Site!A2","v":"𝓛𝓲𝓮𝓷𝓝𝓲𝓷𝓱"},null,"SỐ THÁNG PHÂN BỔ"]
[{"$f":"Site!A3","v":"𝓑𝓾𝓼"}]
[]
[null,"_","KỲ PB","#"]
["Site",null,0,1]
[null,null,1,2]
["Fund center",null,2,3]
[null,null,3,4]
["Profit center",null,6,5]
[null,null,9,6]
["Cost center",null,12,7]
[null,null,15,8]
["MIS code",null,18,9]
[null,null,21,10]
["Commit",null,24,11]
[null,null,27,12]
["Object",null,30,13]
[null,null,33,14]
["Asset",null,36,15]
[null,null,39,16]
["Statistic",null,42,17]
[]
["Financial"]
[]
["Trust"]
[]
["Sub"]
[]
["Fund"]
[]
["Other"]